Cogmind - Beta 13 @@@ ROGUE MODE // 2024.05.03 @ 13:41:02 Player: ElectroBlueGuy Result: Destroyed by 1I-B5D(R) with Subdweller Beam Cannon Performance ------------- Evolutions (0) 0 Regions Visited (2) 400 Robots Destroyed (10) 50 Value Destroyed (177) 177 Prototype IDs (2) 40 Alien Tech Used (0) 0 Bonus (-26) -26 TOTAL SCORE: 641 Bonus ------- Friendly Fire -26 Cogmind --------- Core Integrity 0/250 Matter 266/300 Energy 127/250 System Corruption 0% Temperature Cool (9) Movement Core (500) Ox9 Location -10/Subcaves Parts ------- > --- POWER (1) -------- Ion Engine > --- PROPULSION (2) --- (None) > --- UTILITY (2) ------ Large Storage Unit Core Shielding > --- WEAPON (2) ------- Medium Laser Assault Rifle > --- INVENTORY (15) --- Ion Engine Light Ion Engine Medium Storage Unit Core Shielding Scrap Shield Scrap Shield Fragment (20) Peak State ------------ > --- POWER ------------ Light Nuclear Core > --- PROPULSION ------- Aluminum Leg Aluminum Leg > --- UTILITY ---------- Large Storage Unit Core Shielding > --- WEAPON ----------- Subdweller Beam Cannon Light Assault Rifle > --- INVENTORY -------- Ion Engine Ion Engine Light Ion Engine Medium Storage Unit Core Shielding Scrap Shield Medium Laser Assault Rifle [Rating: 11] Favorites ----------- Power Light Nuclear Core Engine Ion Engine Power Core Light Nuclear Core Propulsion Aluminum Leg Leg Aluminum Leg Utility Large Storage Unit Storage Large Storage Unit Protection Core Shielding Weapon Light Assault Rifle Energy Gun Medium Laser Energy Cannon Subdweller Beam Cannon Ballistic Gun Light Assault Rifle Build | -11 -10 -10 ------- Run | Yrd Mat Sub Slots Evolved . | . . . Power . | . . . Propulsion . | . . . Utility . | . . . Weapon . | . . . Parts Attached 19 | 6 8 5 Power 3 | 1 1 1 Engine 2 | 1 . 1 Core 1 | . 1 . Reactor . | . . . Propulsion 2 | 2 . . Treads . | . . . Leg 2 | 2 . . Wheel . | . . . Hover . | . . . Flight . | . . . Utility 6 | 1 4 1 Device . | . . . Storage 4 | 1 3 . Processor . | . . . Hackware . | . . . Protection 2 | . 1 1 Artifact . | . . . Weapon 8 | 2 3 3 Energy Gun 4 | 1 2 1 Energy Cannon 1 | . . 1 Ballistic Gun 3 | 1 1 1 Ballistic Cannon . | . . . Launcher . | . . . Special Weapon . | . . . Impact Weapon . | . . . Slashing Weapon . | . . . Piercing Weapon . | . . . Special Melee Weapon . | . . . Unidentified Prototypes . | . . . Parts Lost 6 | . 1 5 Power 1 | . . 1 Propulsion 2 | . . 2 Utility . | . . . Weapon 3 | . 1 2 Highest Loss Streak 5 | . 1 5 To Critical Strikes . | . . . Average Slot Usage (%) 98 | . 98 97 Engine 3 | . 4 1 Core 10 | . 9 12 Leg 27 | . 28 25 Storage 22 | . 25 14 Protection 4 | . 1 14 Energy Gun 11 | . 14 3 Energy Cannon 2 | . . 10 Ballistic Gun 14 | . 14 14 Naked Turns . | . . . Heaviest Build 35 | 14 34 35 Greatest Support 20 | 20 20 20 Greatest Overweight (x) 11 | 4 1 11 Average Overweight (x) . | . . 1 Largest Inventory Capacity 15 | 8 15 15 Average Capacity 14 | 7 14 15 Most Carried 10 | 5 8 10 Average Carried 5 | 2 4 8 Final Capacity 15 | 8 15 15 Final Carried 7 | 2 6 7 Class Distribution -------------------- 100% | Mutant Dominant Class ---------------- Mutant | -10/Materials Mutant | -10/Subcaves Resources | -11 -10 -10 ----------- Run | Yrd Mat Sub Matter Collected 389 | 148 220 21 Remotely . | . . . Salvage Created 272 | . 272 . Parts 19 | . 19 . Haulers Intercepted 1 | . 1 . Recyclers Shooed 1 | . 1 . Parts Field Recycled . | . . . Retrieved Matter . | . . . Parts Self-Destructed 6 | . . 6 Prevented . | . . . Kills | -11 -10 -10 ------- Run | Yrd Mat Sub Combat Hostiles Destroyed 9 | . 9 . Guns 9 | . 9 . Classes Destroyed 3 | . 3 . Hauler 1 | . 1 . Swarmer 6 | . 6 . Grunt 3 | . 3 . Best Kill Streak 2 | . 2 . Combat Bots Only 2 | . 2 . Max Kills in Single Turn 1 | . 1 . Gunslinging . | . . . Exploded . | . . . Melee . | . . . Uniques/NPCs Destroyed . | . . . Combat | -11 -10 -10 -------- Run | Yrd Mat Sub Hostile Shots Fired 81 | . 69 12 Missed 19 | . 19 . Damage Taken 940 | . 483 457 Core 260 | . 87 173 Absorbed by Shields . | . . . Redirected to Shielding 33 | . . 33 Core Remaining (%) 100 | 100 . . Volleys Fired 37 | . 30 7 Largest 2 | . 2 2 Hottest 100 | . 70 100 Shots Fired 74 | . 60 14 Gun 68 | . 60 8 Cannon 6 | . . 6 Launcher . | . . . Special . | . . . Kinetic 37 | . 30 7 Thermal 37 | . 30 7 Explosive . | . . . Electromagnetic . | . . . Robot Hit Streak 11 | . 11 3 Robot Miss Streak 2 | . 2 1 Penetration Max . | . . . Secondary Targets 2 | . 2 . Max Gunslinging Chain 1 | . 1 . Shots Hit Robots 42 | . 39 3 Core Hits 18 | . 16 2 Critical Kills . | . . . Critical Parts Destroyed . | . . . Critical Strikes . | . . . Melee Attacks . | . . . Impact . | . . . Slashing . | . . . Piercing . | . . . Sneak Attacks . | . . . Combat Hostiles . | . . . Follow-up Attacks . | . . . Damage Inflicted 512 | . 439 73 Guns 457 | . 439 18 Cannons 55 | . . 55 Explosions . | . . . Melee . | . . . Ramming . | . . . Kinetic 203 | . 197 6 Thermal 309 | . 242 67 Explosive . | . . . Electromagnetic . | . . . Impact . | . . . Slashing . | . . . Piercing . | . . . Highest Corruption . | . . . Average Corruption . | . . . Corruption Purged . | . . . Corruption Blocked . | . . . Overload Shots . | . . . Overflow Damage . | . . . Projectiles . | . . . Explosions . | . . . Melee . | . . . Knockbacks . | . . . Impact . | . . . Kinetic . | . . . Secondary . | . . . Self-Inflicted Damage . | . . . Shots . | . . . Rammed . | . . . Targets Rammed . | . . . Kicked . | . . . Crushed . | . . . Highest Temperature 135 | . 135 48 Average Temperature 39 | . 41 24 Received Heat Transfer 180 | . 126 54 Siege Activations . | . . . Robots Corrupted . | . . . Combat Hostiles . | . . . Parts Fried . | . . . Impact Corruptions . | . . . Robots Melted . | . . . Combat Hostiles . | . . . Parts Melted 1 | . 1 . Heat Transferred 732 | . 621 111 Parts Sabotaged . | . . . Parts Stolen . | . . . Parts Stripped . | . . . Power Chain Reactions . | . . . Alert | -11 -10 -10 ------- Run | Yrd Mat Sub Peak Influence 335 | . 335 . Initial . | . . . Average 133 | . 140 . Maximum Alert Level 1 | . 1 . Low Security (%) 58 | 100 56 . Level 1 41 | . 43 . Level 2 . | . . . Level 3 . | . . . Level 4 . | . . . Level 5 . | . . . High Security . | . . . Max Security . | . . . Squads Dispatched 1 | . 1 . Investigation . | . . . Extermination . | . . . Reinforcement 1 | . 1 . Assault . | . . . Garrison . | . . . Intercept . | . . . Searches Triggered . | . . . Construction Impeded . | . . . Haulers Reinforced . | . . . Active Scanning Responses . | . . . Cargo Convoy Interrupts . | . . . Stealth | -11 -10 -10 --------- Run | Yrd Mat Sub Distress Signals 4 | . 4 . Communications Jammed . | . . . Distress Signals . | . . . Times Spotted 29 | . 21 8 Peak Tracking Total 8 | . 7 8 Tactical Retreats 4 | . 4 . Traps | -11 -10 -10 ------- Run | Yrd Mat Sub Traps Triggered . | . . . Indirectly . | . . . Trap Hack Attempts . | . . . Triggered . | . . . Disarmed . | . . . Reprogrammed . | . . . Reused . | . . . Traps Extracted . | . . . Installed . | . . . Triggered . | . . . Machines | -11 -10 -10 ---------- Run | Yrd Mat Sub Machines Disabled . | . . . Max in Single Turn . | . . . Machines Repaired . | . . . Machines Dismantled . | . . . Machines Sabotaged . | . . . Overloaded Fab Kills . | . . . Hacking | -11 -10 -10 --------- Run | Yrd Mat Sub Machines Accessed 4 | . 4 . Terminals 3 | . 3 . Fabricators . | . . . Repair Stations . | . . . Recycling Units 1 | . 1 . Scanalyzers . | . . . Garrison Access . | . . . Total Hacks 13 | . 13 . Successful 7 | . 7 . Failed 6 | . 6 . Catastrophic . | . . . Database Lockouts . | . . . Manual . | . . . Terminals 10 | . 10 . Fabricators . | . . . Repair Stations . | . . . Recycling Units 3 | . 3 . Scanalyzers . | . . . Garrison Access . | . . . Terminal Hacks 6 | . 6 . Prototype ID Bank 1 | . 1 . Branch Access Points 1 | . 1 . Emergency Access Points 1 | . 1 . Alert Level 1 | . 1 . Hauler Manifests 1 | . 1 . Zone Layout 1 | . 1 . Fabricator Hacks . | . . . Repair Station Hacks . | . . . Recycling Unit Hacks 1 | . 1 . Retrieve Components 1 | . 1 . Scanalyzer . | . . . Garrison Access Hacks . | . . . Unauthorized Hacks . | . . . Terminals . | . . . Fabricators . | . . . Repair Stations . | . . . Recycling Units . | . . . Scanalyzers . | . . . Garrison Access . | . . . Data Cores Recovered . | . . . Used . | . . . Hacking Detections 3 | . 3 . Full Trace Events 1 | . 1 . Feedback Events . | . . . Feedback Blocked . | . . . Robot Schematics Acquired . | . . . Robots Built . | . . . Authchips . | . . . Time . | . . . Total Robot Build Rating . | . . . Part Schematics Acquired . | . . . Parts Built . | . . . Authchips . | . . . Time . | . . . Total Part Build Rating . | . . . Parts Repaired . | . . . Time . | . . . Parts Recycled . | . . . Recycled Matter . | . . . Retrieved Matter . | . . . Retrieved Components 5 | . 5 . Parts Scanalyzed . | . . . Part Schematics Acquired . | . . . Parts Damaged . | . . . Bothacking | -11 -10 -10 ------------ Run | Yrd Mat Sub Used RIF Installer . | . . . Robots Hacked . | . . . Non-combat . | . . . Combat . | . . . Robot Hacks Applied . | . . . Relay Couplers Released . | . . . Fabnet Peak Effective % . | . . . Robots Rewired . | . . . Allies Hacked . | . . . Hacks Repelled . | . . . Allies | -11 -10 -10 -------- Run | Yrd Mat Sub Total Allies . | . . . Largest Group . | . . . Highest-Rated Group . | . . . Highest-Rated Ally . | . . . Total Orders . | . . . Ally Attacks . | . . . Total Damage . | . . . Kills . | . . . Allies Corrupted . | . . . Allies Melted . | . . . Intel | -11 -10 -10 ------- Run | Yrd Mat Sub Robot Analysis Total . | . . . Derelict Logs Recovered 1 | . . 1 Drone Launches . | . . . Drone Recoveries . | . . . Exploration | -11 -10 -10 ------------- Run | Yrd Mat Sub Turns Passed 1150 | 48 886 216 Spaces Moved 537 | 32 410 95 Core 20 | 19 . 1 Treads . | . . . Legs 517 | 13 410 94 Wheels . | . . . Hover . | . . . Flight . | . . . Fastest Speed 50 | 50 120 190 Average Speed 180 | 109 182 195 Slowest Speed 600 | 250 190 600 Overloaded Moves . | . . . Propulsion Burnouts . | . . . Robots Hopped . | . . . Cave-ins Triggered . | . . . Exploration Rate (%) 21 | 4 53 6 Regions Visited 2 Branch Regions 1 Pre-discovered Areas 1 | . . 1 Known Exits Taken . | . . . Unknown Exits Taken 2 | 1 1 . Scrap Searched . | . . . Spaces Dug . | . . . Terrain Destroyed 1 | . . 1 Melee . | . . . Projectile 1 | . . 1 AOE . | . . . Terrain Rammed . | . . . Walls Destroyed . | . . . Machines Disabled . | . . . Actions | -11 -10 -10 --------- Run | Yrd Mat Sub Total 651 | 45 492 114 Wait 31 | . 31 . Move 535 | 31 409 95 Hop . | . . . Pick Up 20 | 8 9 3 Fast Attach . | . . . Attach 14 | 6 4 4 Detach 3 | . 2 1 Swap 5 | . 4 1 Drop 3 | . 3 . Fire 37 | . 30 7 Melee . | . . . Ram . | . . . Kick . | . . . Crush . | . . . Escape Stasis . | . . . Rewire 3 | . . 3 Trap . | . . . Miscellaneous . | . . . Route ------- -11/Scrapyard -10/Materials (discovered 3 exits: [*Mat] / Min / [*Sub]) -10/Subcaves History --------- Turn | Location | Event 23 | -11/Scrapyard | Discovered new exit (range 14) 49 | -11/Scrapyard | Entered Materials 321 | -10/Materials | Build established: Mutant 545 | -10/Materials | Discovered new exit (range 16) 633 | -10/Materials | Identified exit to Mines 843 | -10/Materials | Discovered new exit (range 9) 935 | -10/Materials | Entered Subcaves 963 | -10/Subcaves | Learned location of Zion (-7) 967 | -10/Subcaves | Shifting Twisted Machinery released Sub. Beam Cannon 968 | -10/Subcaves | Shifting Twisted Machinery released Sub. Monowheel 1127 | -10/Subcaves | Ambushed by swarm of Subdwellers 1127 | -10/Subcaves | Ambushed by Subdwellers from Twisted Machinery 1127 | -10/Subcaves | Ambushed by Subdwellers from Twisted Machinery 1137 | -10/Subcaves | Core integrity fell below 50% 1141 | -10/Subcaves | Core integrity fell below 20% 1151 | -10/Subcaves | Destroyed by 1I-B5D(R) with Subdweller Beam Cannon Last Messages --------------- 01136_ FV-88Q(R) destroyed. 01138_ HV Slug penetrates JW-OVW(R). 01138_ JW-OVW(R) suffers critical hit (Destroy). 01138_ JW-OVW(R) destroyed. 01139_ Subatomizers dissect the Sub. Optics. 01140_ Acquired 21 matter. 01140_ W7-BGH(g) destroyed. 01140_ Sub. Beam Cannon destroyed. 01140_ Lgt. Assault Rifle destroyed. 01140_ WM-FGP(R) destroyed. 01141_ W8-C60(R) suffers critical hit (Burn). 01141_ DM-F0G(R) suffers critical hit (Destroy). 01141_ DM-F0G(R) destroyed. 01143_ TW-RS9(R) destroyed. 01144_ DY-4L1(R) suffers critical hit (Destroy). 01144_ DY-4L1(R) knocked back. 01144_ DY-4L1(R) destroyed. 01145_ Z0-SC7(h) destroyed. 01147_ W8-C60(R) destroyed. 01147_ QU-6UF(g) destroyed. Map ----- +----------------------------------------------------+ | ???????????????## #?????????????????????????? | | ???????????????# ###???????????????????????? | | ???????????????# ## ##??????????????????????? | | ???????????????# ##""#??????????????????????? | | ??????????????##" #??????????????????????? | | ??????????????#=" #??????????????????????? | | ??????????????#"" #??????????????????????? | | ??????????????#" #??????????????????????? | | ??????????????#" "#??????????????????????? | | ??????????????#" "##??????????????????????? | | ??????????????#" "##???????????????????????? | | ??????????????## ##????????????????????????? | | ???????????????##" #?????????????????????????? | | ????????????????#" #?????????????????????????? | | ????????????????#" ##????????????????????????? | | ???????????????## "#????????????????????????? | | ???????????????#; #????????????????????????? | | ??????????????## ;;##??????????????????????? | | ??????????????#;; ;;#??????????????????????? | | ??????????????# ; #??????????????????????? | | ??????????????#;; #??????##??????????????? | | ??????????????#; ###??## #??????????????? | | ??????????????#; ;;;## #??????????????? | | ??????????????# ;;; #######????????? | | ??????????????# &R #????????? | | ??????????????##; =%@%[!* #??????????????? | | ???????????????# !%!% ##??????????????? | | ???????????????#; ; =%* #???????????????? | | ???????????????###;; %%& #???????????????? | | ?????????????????##; !%&[ #???????????????? | | ??????????????????# !%%& #??????????????? | | ?????????????????? &&%& #" ?????????????? | | ????????????????? R #*""####????????????? | | ????????????????? !%%%#???????????????? | | ????????????????#### ] #???????????????? | | ???????????????????# #???????????????? | | ???????????????????# #???????????????? | | ??????????????????? ???????????????? | | ??????????????????? ??????????????? | | ??????????????????? #?????????????? | | ??????????????????? ???? ??????????????? | | ??????????????????? ?????????????????????? | | ????????????????????? ???????????????????????? | | ?????????????????????????????????????????????? | | ?????????????????????????????????????????????? | | ?????????????????????????????????????????????? | | ?????????????????????????????????????????????? | | ?????????????????????????????????????????????? | | ?????????????????????????????????????????????? | | ?????????????????????????????????????????????? | +----------------------------------------------------+ Best States ------------- Heat Dissipation 25 Energy Generation 14 Energy Capacity 250 Matter Stores 300 Matter Capacity 300 Sight Range 16 Terrain Scan Density 10 Core Shielding 20 Evasion (%) 55 Item Schematics ----------------- None Robot Schematics ------------------ None Fabricated ------------ Nothing Alien Tech Used ----------------- None Achievements -------------- None Challenges ------------ None Game ------ Seed PiercingSkeletonCutter Manual? 0 Play Time 00:13:35 Cumulative 4.7 hours Start 2024.05.03 @ 12:31:33 End 2024.05.03 @ 13:41:02 Sessions 1 Manual Loads 0 Difficulty Rogue Special Mode None Game No. 11 Rogue 11 Adventurer 0 Explorer 0 Win Type - Total 0 Types 0/0/0/0/0/0/0/0/0 Lore% 1 Gallery% 13 Achievement% 8 Wizard Run 0 Options --------- Layout 1 ASCII 0 Keyboard 1 Movement Numpad Keybinds 0 Fullscreen 1 Font 24/Smallcaps Map View 50x35 Zoom Use 0% Tactical HUD 1 Map Filters NONE Filters NONE Steam 1 RUN: 5c8d8a22-1bb9-4f8a-932b-02894cc54192